fUST/lending_fUST_20260126
["ID","MTS","AMOUNT","RATE_DAILY","PERIOD"]
[403632725,1769434238256,-500.0,0.00012328,2]
[403632726,1769434238265,-565.46265833,0.00012328,2]
[403632727,1769434238273,-500.0,0.00012328,2]
[403632728,1769434238282,-500.0,0.00012328,2]
[403632729,1769434238291,-565.46265833,0.00012328,2]
[403632730,1769434238300,-500.0,0.00012328,2]
[403632731,1769434238310,-500.0,0.00012328,2]
[403632732,1769434238319,-500.0,0.00012328,2]
[403632733,1769434238329,-565.46265833,0.00012328,2]
[403632734,1769434238339,-500.0,0.00012328,2]
[403632735,1769434238348,-500.0,0.00012328,2]
[403632736,1769434238358,-565.46265833,0.00012328,2]
[403632737,1769434238371,-500.0,0.00012328,2]
[403632738,1769434238380,-500.0,0.00012328,2]
[403632739,1769434238389,-500.0,0.00012328,2]
[403632740,1769434238399,-565.46265833,0.00012328,2]
[403632741,1769434238409,-500.0,0.00012328,2]
[403632742,1769434238419,-500.0,0.00012328,2]
[403632743,1769434238428,-500.0,0.00012328,2]
[403632744,1769434238439,-565.46265833,0.00012328,2]
[403632745,1769434238448,-500.0,0.00012328,2]
[403632746,1769434238458,-501.93827313,0.00012328,2]
[403632747,1769434238468,-500.0,0.00012328,2]
[403632748,1769434238478,-565.46265833,0.00012328,2]
[403632749,1769434238487,-500.0,0.00012328,2]
[403632750,1769434238496,-510.72991057,0.00012328,2]
[403632751,1769434238506,-500.0,0.00012328,2]
[403632752,1769434238515,-565.46265833,0.00012328,2]
[403632753,1769434238524,-500.0,0.00012328,2]
[403632754,1769434238533,-500.0,0.00012328,2]
[403632755,1769434238541,-565.46265833,0.00012328,2]
[403632756,1769434238550,-500.0,0.00012328,2]
[403632757,1769434238560,-500.0,0.00012328,2]
[403632758,1769434238569,-500.0,0.00012328,2]
[403632759,1769434238579,-565.46265833,0.00012328,2]
[403632760,1769434238588,-500.0,0.00012328,2]
[403632761,1769434238597,-565.46265833,0.00012328,2]
[403632762,1769434238607,-500.0,0.00012328,2]
[403632763,1769434238617,-500.0,0.00012328,2]
[403632764,1769434238626,-500.0,0.00012328,2]
[403632765,1769434238638,-500.0,0.00012328,2]
[403632766,1769434238648,-565.46265833,0.00012328,2]
[403632767,1769434238661,-500.0,0.00012328,2]
[403632768,1769434238671,-565.46265833,0.00012328,2]
[403632769,1769434238680,-500.0,0.00012328,2]
[403632770,1769434238690,-500.0,0.00012328,2]
[403632771,1769434238699,-163.28297802,0.00012328,2]
[403632772,1769434238708,-565.46265833,0.00012328,2]
[403632773,1769434238717,-500.0,0.00012328,2]
[403632774,1769434238726,-500.0,0.00012328,2]
[403632775,1769434238736,-500.0,0.00012328,2]
[403632776,1769434238745,-500.0,0.00012328,2]
[403632777,1769434238755,-565.46265833,0.00012328,2]
[403632778,1769434238764,-500.0,0.00012328,2]
[403632779,1769434238774,-500.0,0.00012328,2]
[403632780,1769434238783,-565.46265833,0.00012328,2]
[403632781,1769434238792,-500.0,0.00012328,2]
[403632782,1769434238802,-500.0,0.00012328,2]
[403632783,1769434238811,-500.0,0.00012328,2]
[403632784,1769434238821,-565.46265833,0.00012328,2]
[403632785,1769434238830,-500.0,0.00012328,2]
[403632786,1769434238840,-500.0,0.00012328,2]
[403632787,1769434238849,-565.46265833,0.00012328,2]
[403632788,1769434238859,-565.46265833,0.00012328,2]
[403632789,1769434238868,-500.0,0.00012328,2]
[403632790,1769434238877,-500.0,0.00012328,2]
[403632791,1769434238887,-500.0,0.00012328,2]
[403632792,1769434238896,-565.46265833,0.00012328,2]
[403632793,1769434238905,-500.0,0.00012328,2]
[403632794,1769434238915,-500.0,0.00012328,2]
[403632795,1769434238924,-565.46265833,0.00012328,2]
[403632796,1769434238933,-565.46265833,0.00012328,2]
[403632797,1769434238942,-500.0,0.00012328,2]
[403632798,1769434238952,-565.46265833,0.00012328,2]
[403632799,1769434238962,-500.0,0.00012328,2]
[403632800,1769434238972,-500.0,0.00012328,2]
[403632801,1769434238981,-565.46265833,0.00012328,2]
[403632802,1769434238991,-500.0,0.00012328,2]
[403632803,1769434239000,-565.46265833,0.00012328,2]
[403632804,1769434239009,-500.0,0.00012328,2]
[403632805,1769434239019,-565.46265833,0.00012328,2]
[403632806,1769434239029,-500.0,0.00012328,2]
[403632807,1769434239039,-565.46265833,0.00012328,2]
[403632808,1769434239048,-565.46265833,0.00012328,2]
[403632809,1769434239058,-565.46265833,0.00012328,2]
[403632810,1769434239067,-565.46265833,0.00012328,2]
[403632811,1769434239077,-500.0,0.00012328,2]
[403632812,1769434239086,-565.46265833,0.00012328,2]
[403632813,1769434239096,-565.46265833,0.00012328,2]
[403632814,1769434239105,-565.46265833,0.00012328,2]
[403632815,1769434239115,-565.46265833,0.00012328,2]
[403632816,1769434239125,-565.46265833,0.00012328,2]
[403632817,1769434239135,-565.46265833,0.00012328,2]
[403632818,1769434239146,-565.46265833,0.00012328,2]
[403632819,1769434239156,-565.46265833,0.00012328,2]
[403632820,1769434239166,-565.46265833,0.00012328,2]
[403632821,1769434239176,-565.46265833,0.00012328,2]
[403632822,1769434239186,-565.46265833,0.00012328,2]
[403632823,1769434239196,-565.46265833,0.00012328,2]
[403632824,1769434239205,-565.46265833,0.00012328,2]
[403632825,1769434239215,-565.46265833,0.00012328,2]
[403632826,1769434239224,-519.25739175,0.00012328,2]
[403632827,1769434239238,-46.20526658,0.00012328,2]
[403632828,1769434239248,-565.46265833,0.00012328,2]
[403632829,1769434239258,-565.46265833,0.00012328,2]
[403632830,1769434239267,-565.46265833,0.00012328,2]
[403632831,1769434239276,-565.46265833,0.00012328,2]
[403632832,1769434239285,-565.46265833,0.00012328,2]
[403632833,1769434239294,-126.48144177,0.00012328,2]
[403632834,1769434239306,-438.98121656,0.00012328,2]
[403632835,1769434239315,-565.46265833,0.00012328,2]
[403632836,1769434239325,-238.08,0.00012329,2]
[403632837,1769434239334,-198.4,0.00012329,2]
[403632838,1769434239343,-165.34,0.00012329,2]
[403632839,1769434239353,-826.7,0.00012329,2]
[403632840,1769434239365,-1031.09915012,0.00012382,2]
[403632841,1769434239376,-422.51316734,0.00012382,2]
[403632842,1769434239386,-982.7234609,0.0001245,2]
[403632843,1769434239395,-500.0,0.00012481,2]
[403632844,1769434239406,-110.28068017,0.00012481,2]
[403632845,1769434239417,-65.17400423,0.00012481,2]
[403632846,1769434239426,-500.0,0.00012482,2]
[403632847,1769434239435,-600.0,0.00012483,2]
[403632848,1769434239446,-613.55268574,0.00012634,2]
[403632852,1769434239608,-403.0,0.00012634,2]
[403632854,1769434239620,-533.92,0.00012634,2]
[403632856,1769434239632,-27473.06887387,0.00012634,2]
[403632858,1769434239641,-500.0,0.00012756,2]
[403632860,1769434239650,-2379.05820514,0.000129,2]
[403632862,1769434239659,-1453.61231746,0.00013012,2]
[403632864,1769434239668,-502.89555556,0.0001303,2]
[403632866,1769434239677,-50000.0,0.00013169,2]
[403632868,1769434239686,-420.0,0.00013172,2]
[403632870,1769434239695,-420.0,0.00013172,2]
[403632872,1769434239704,-420.0,0.00013172,2]
[403632874,1769434239713,-420.0,0.00013172,2]
[403632876,1769434239723,-1680.0,0.00013198,2]
[403632877,1769434239732,-420.0,0.00013199,2]
[403632878,1769434239740,-500.0,0.00013273,2]
[403632880,1769434239750,-500.0,0.00013273,2]
[403632882,1769434239759,-500.0,0.00013273,2]
[403632884,1769434239767,-500.0,0.00013273,2]
[403632886,1769434239777,-500.0,0.00013273,2]
[403632888,1769434239786,-1000.0,0.000135,2]
[403632890,1769434239794,-290.04776976,0.00013517,2]
[403632892,1769434239803,-90459.56575304,0.00013611,2]
[403632894,1769434239813,-4674.67948274,0.00013611,2]
[403632895,1769434239824,-1367.40558193,0.00013611,2]
[403632896,1769434239841,-22913.23475269,0.00013611,2]
[403632897,1769434239850,-1453.61231746,0.00013641,2]
[403632898,1769434239859,-300.0,0.00013673,2]
[403632899,1769434239868,-500.0,0.00013699,2]
[403632901,1769434239877,-720.0,0.00013731,2]
[403632903,1769434239887,-1000.0,0.00013821,2]
[403632905,1769434239896,-1000.0,0.00013821,2]
[403632907,1769434239905,-1000.0,0.00013821,2]
[403632909,1769434239915,-160.0,0.00013956,2]
[403632911,1769434239924,-1041.66666667,0.00013956,2]
[403632913,1769434239933,-100000.0,0.0001399,2]
[403632915,1769434239942,-455.70140306,0.00013994,2]
[403632917,1769434239951,-600.0,0.00014221,2]
[403632919,1769434239960,-1000.0,0.00014247,2]
[403632921,1769434239969,-1453.61231746,0.00014271,2]
[403632923,1769434239979,-179.0,0.00014356,3]
[403632925,1769434239988,-1500.0,0.00014368,2]
[403632927,1769434239997,-1500.0,0.00014368,2]
[403632929,1769434240007,-1500.0,0.00014368,2]
[403632931,1769434240016,-918.11069237,0.00014394,2]
[403632933,1769434240025,-300.0,0.0001446,2]
[403632935,1769434240034,-161.0,0.0001446,2]
[403632937,1769434240043,-180.0,0.0001446,2]
[403632939,1769434240053,-587.0,0.0001446,2]
[403632941,1769434240062,-1031.0,0.000145,3]
[403632943,1769434240072,-2351.0,0.00014518,2]
[403632945,1769434240082,-900.0,0.00014768,2]
[403632947,1769434240091,-1500.0,0.00014795,2]
[403632949,1769434240100,-754.10224256,0.00014837,2]
[403632951,1769434240108,-595.81313505,0.000149,2]
[403632952,1769434240117,-1453.61231746,0.000149,2]
[403632954,1769434240127,-2000.0,0.00014916,2]
[403632956,1769434240137,-2000.0,0.00014916,2]
[403632958,1769434240147,-2000.0,0.00014916,2]
[403632960,1769434240156,-1020.44694379,0.00015,2]
[403632962,1769434240165,-580.47140307,0.00015,2]
[403632964,1769434240174,-78769.91693024,0.00015,2]
[403632966,1769434240183,-24385.87077918,0.00015,2]
[403632968,1769434240192,-151.21168241,0.00015,2]
[403632970,1769434240201,-600.01,0.00015,2]
[403632972,1769434240210,-600.01,0.00015,2]
[403632974,1769434240220,-600.01,0.00015,2]
[403632976,1769434240229,-600.01,0.00015,2]
[403632978,1769434240238,-600.01,0.00015,2]
[403632980,1769434240247,-600.01,0.00015,2]
[403632982,1769434240256,-600.01,0.00015,2]
[403632984,1769434240265,-600.01,0.00015,2]
[403632986,1769434240274,-600.01,0.00015,2]
[403632988,1769434240283,-600.01,0.00015,2]
[403632990,1769434240292,-600.01,0.00015,2]
[403632992,1769434240301,-600.01,0.00015,2]
[403632994,1769434240310,-600.01,0.00015,2]
[403632996,1769434240320,-600.01,0.00015,2]
[403632998,1769434240329,-600.01,0.00015,2]
[403633000,1769434240338,-600.01,0.00015,2]
[403633002,1769434240348,-600.01,0.00015,2]
[403633004,1769434240357,-600.01,0.00015,2]
[403633006,1769434240369,-600.01,0.00015,2]
[403633008,1769434240378,-600.01,0.00015,2]
[403633010,1769434240387,-600.01,0.00015,2]
[403633012,1769434240396,-600.01,0.00015,2]
[403633014,1769434240406,-600.01,0.00015,2]
[403633016,1769434240415,-600.01,0.00015,2]
[403633018,1769434240425,-600.01,0.00015,2]
[403633020,1769434240435,-600.01,0.00015,2]
[403633022,1769434240445,-600.01,0.00015,2]
[403633024,1769434240454,-600.01,0.00015,2]
[403633026,1769434240463,-600.01,0.00015,2]
[403633028,1769434240472,-600.01,0.00015,2]
[403633030,1769434240482,-600.01,0.00015,2]
[403633032,1769434240491,-600.01,0.00015,2]
[403633034,1769434240499,-600.01,0.00015,2]
[403633036,1769434240509,-600.01,0.00015,2]
[403633038,1769434240518,-600.01,0.00015,2]
[403633040,1769434240527,-953.26,0.00015,2]
[403633042,1769434240536,-1099.536109,0.00015068,2]
[403633044,1769434240546,-864.0,0.00015104,2]
[403633046,1769434240555,-393.63223956,0.00015316,2]
[403633048,1769434240564,-2000.0,0.00015342,2]
[403633050,1769434240573,-2379.05820509,0.00015357,2]
[403633052,1769434240582,-808168.77701362,0.000154,2]
[403633054,1769434240591,-2150.0,0.00015426,2]
[403633056,1769434240601,-179.001,0.00015426,2]
[403633058,1769434240611,-418.0,0.00015426,2]
[403633060,1769434240621,-1497.48189141,0.00015464,2]
[403633062,1769434240630,-2500.0,0.00015464,2]
[403633063,1769434240639,-2500.0,0.00015464,2]
[403633064,1769434240647,-200.0,0.00015492,9]
[403633065,1769434240657,-500.0,0.00015492,9]
[403633066,1769434240666,-150.0,0.00015492,9]
[403633067,1769434240676,-150.0,0.00015492,9]
[403633068,1769434240685,-500.0,0.00015492,9]
[403633069,1769434240695,-150.0,0.00015492,9]
[403633070,1769434240704,-179.9640072,0.00015516,2]
[403633071,1769434240713,-334.29234481,0.00015517,2]
[403633072,1769434240722,-150.0,0.00015616,2]
[403633073,1769434240731,-500.0,0.00015616,2]
[403633074,1769434240740,-500.0,0.00015616,2]
[403633075,1769434240749,-500.0,0.00015616,2]
[403633076,1769434240759,-150.0,0.00015616,2]
[403633077,1769434240769,-150.0,0.00015616,2]
[403633078,1769434240778,-150.0,0.00015616,2]
[403633079,1769434240787,-500.0,0.00015616,2]
[403633080,1769434240796,-153.80161828,0.00015616,2]
[403633081,1769434240806,-201.4653447,0.00015616,2]
[403633082,1769434240815,-500.0,0.00015616,2]
[403633083,1769434240824,-500.0,0.00015616,2]
[403633084,1769434240833,-150.0,0.00015616,2]
[403633085,1769434240842,-150.0,0.00015616,2]
[403633086,1769434240851,-150.0,0.00015616,2]
[403633087,1769434240861,-155.78190647,0.00015616,2]
[403633088,1769434240871,-174.55748242,0.00015616,2]
[403633089,1769434240881,-500.0,0.00015629,9]
[403633090,1769434240890,-150.0,0.00015629,9]
[403633091,1769434240899,-167.91373532,0.00015629,9]
[403633092,1769434240909,-500.0,0.00015629,9]
[403633093,1769434240918,-150.0,0.00015629,9]
[403633094,1769434240928,-5000.0,0.0001564,2]
[403633096,1769434240937,-150.0,0.00015753,2]
[403633098,1769434240946,-500.0,0.00015753,2]
[403633100,1769434240955,-500.0,0.00015753,2]
[403633102,1769434240964,-500.0,0.00015753,2]
[403633104,1769434240974,-150.3320561,0.00015753,2]
[403633106,1769434240983,-150.0,0.00015753,2]
[403633108,1769434240992,-150.0,0.00015753,2]
[403633110,1769434241001,-500.0,0.00015753,2]
[403633112,1769434241011,-500.0,0.00015753,2]
[403633114,1769434241020,-500.0,0.00015753,2]
[403633116,1769434241029,-150.0,0.00015753,2]
[403633118,1769434241038,-150.0,0.00015753,2]
[403633120,1769434241047,-276.51324549,0.00015753,2]
[403633122,1769434241056,-500.0,0.00015766,9]
[403633124,1769434241066,-150.0,0.00015766,9]
[403633126,1769434241075,-500.0,0.00015766,9]
[403633128,1769434241084,-150.0,0.00015766,9]
[403633130,1769434241093,-421.09,0.000158,2]
[403633132,1769434241103,-501.54,0.000158,2]
[403633134,1769434241112,-823.0,0.00015874,2]
[403633136,1769434241121,-200.98832221,0.0001589,2]
[403633138,1769434241130,-500.64348951,0.0001589,2]
[403633140,1769434241140,-500.95054583,0.0001589,2]
[403633141,1769434241149,-150.0,0.0001589,2]
[403633143,1769434241158,-500.0,0.0001589,2]
[403633145,1769434241167,-500.0,0.0001589,2]
[403633147,1769434241177,-600.0,0.0001589,2]
[403633149,1769434241186,-150.0,0.0001589,2]
[403633151,1769434241196,-150.0,0.0001589,2]
[403633153,1769434241205,-2500.0,0.0001589,2]
[403633155,1769434241214,-150.0,0.00015903,9]
[403633157,1769434241223,-500.0,0.00015903,9]
[403633159,1769434241232,-500.0,0.00015903,9]
[403633161,1769434241241,-150.0,0.00015903,9]
[403633163,1769434241250,-540.0,0.00015969,2]
[403633165,1769434241259,-1000.0,0.00016,2]
[403633167,1769434241267,-216.19111231,0.00016,2]
[403633169,1769434241277,-3000.0,0.00016012,2]
[403633171,1769434241286,-2475.94196246,0.00016012,2]
[403633173,1769434241295,-150.0,0.00016027,2]
[403633175,1769434241303,-150.0,0.00016027,2]
[403633177,1769434241313,-150.0,0.0001604,9]
[403633179,1769434241322,-500.0,0.0001604,9]
[403633181,1769434241331,-222.35139926,0.0001604,9]
[403633183,1769434241340,-150.0,0.00016164,2]
[403633185,1769434241349,-250.0,0.00016177,9]
[403633187,1769434241358,-207.53367083,0.00016177,9]
[403633189,1769434241370,-150.0,0.00016301,2]
[403633191,1769434241379,-250.0,0.00016438,2]
[403633193,1769434241389,-150.0,0.00016438,2]
[403633195,1769434241397,-164.53752599,0.00016438,2]
[403633197,1769434241407,-3000.0,0.00016438,2]
[403633199,1769434241416,-200.0,0.00016473,2]
[403633201,1769434241425,-1000.0,0.000165,2]
[403633203,1769434241435,-3500.0,0.0001656,2]
[403633205,1769434241445,-1000.0,0.00016615,2]
[403633207,1769434241454,-207.87778273,0.000169,2]
[403633209,1769434241463,-150.33747135,0.00016986,2]
[403633211,1769434241472,-3500.0,0.00016986,2]
[403633213,1769434241481,-1000.0,0.00017,2]
[403633215,1769434241490,-111663.52360346,0.00017,2]
[403633217,1769434241499,-4000.0,0.00017108,2]
[403633219,1769434241508,-150.0,0.00017226,2]
[403633221,1769434241517,-500.0,0.00017226,2]
[403633223,1769434241526,-500.0,0.00017226,2]
[403633225,1769434241535,-500.0,0.00017226,2]
[403633227,1769434241544,-168.0,0.00017246,2]
[403633229,1769434241552,-168.0,0.00017359,2]
[403633230,1769434241562,-150.0,0.00017363,2]
[403633232,1769434241571,-500.0,0.00017363,2]
[403633234,1769434241580,-500.0,0.00017363,2]
[403633237,1769434241589,-500.0,0.00017363,2]
[403633238,1769434241599,-166.66666668,0.000174,2]
[403633240,1769434241608,-431.0,0.00017426,2]
[403633242,1769434241617,-209.40437684,0.00017463,2]
[403633244,1769434241626,-217.15233878,0.00017463,2]
[403633246,1769434241635,-225.18697532,0.00017463,2]
[403633248,1769434241644,-233.51889341,0.00017463,2]
[403633250,1769434241653,-283.61912344,0.00017463,2]
[403633252,1769434241662,-321.53783763,0.00017463,2]
[403633254,1769434241671,-500.66953665,0.000175,2]
[403633256,1769434241680,-500.0,0.000175,2]
[403633258,1769434241689,-500.0,0.000175,2]
[403633260,1769434241698,-1000.0,0.000175,2]
[403633262,1769434241707,-378.53691986,0.00017517,2]
[403633264,1769434241716,-4000.0,0.00017534,2]
[403633266,1769434241725,-1299.999999,0.000176,2]
[403633268,1769434241734,-2140.72042613,0.000176,2]
[403633270,1769434241743,-2000.0,0.00017656,2]
[403633272,1769434241752,-200.0,0.00017737,7]
[403633274,1769434241761,-200.0,0.00017737,7]
[403633276,1769434241770,-217.73509303,0.00017737,7]
[403633278,1769434241779,-1000.0,0.00017808,2]
[403633280,1769434241789,-150.0,0.00017808,2]
[403633282,1769434241798,-281.66552966,0.00017842,2]
[403633284,1769434241807,-168.0,0.00017856,2]
[403633286,1769434241816,-200.0,0.00018,2]
[403633288,1769434241825,-1000.0,0.00018,2]
[403633290,1769434241834,-162104.47968144,0.00018,2]
[403633292,1769434241843,-3935.155434,0.00018,7]
[403633294,1769434241851,-4500.0,0.00018082,2]
[403633296,1769434241860,-168.0,0.00018136,2]
[403633298,1769434241869,-168.0,0.0001818,2]
[403633300,1769434241878,-168.0,0.00018201,2]
[403633302,1769434241887,-1166.9007296,0.00018219,2]
[403633304,1769434241896,-1000.0,0.00018276,2]
[403633306,1769434241905,-244.0,0.00018276,2]
[403633308,1769434241914,-349.0,0.00018326,2]
[403633310,1769434241923,-200.0,0.00018356,2]
[403633312,1769434241932,-955.28,0.00018361,2]
[403633314,1769434241940,-179.0,0.00018426,2]
[403633316,1769434241949,-418.0,0.00018426,2]
[403633318,1769434241958,-1872.551187,0.00018493,7]
[403633320,1769434241967,-1099.536109,0.00018493,2]
[403633322,1769434241975,-1000.0,0.000185,2]
[403633324,1769434241984,-440.0,0.00018545,2]
[403633326,1769434241993,-2379.05820509,0.00018575,2]
[403633328,1769434242002,-5000.0,0.0001863,2]
[403633330,1769434242010,-166.66666666,0.0001865,2]
[403633332,1769434242019,-345.227,0.00018678,2]
[403633334,1769434242029,-178.83560877,0.00018678,2]
[403633336,1769434242038,-168.0,0.0001874,3]
[403633338,1769434242047,-522.0,0.00018747,2]
[403633340,1769434242056,-347.569542,0.00018747,7]
[403633342,1769434242065,-766.010548,0.00018747,7]
[403633344,1769434242075,-5000.0,0.00018768,2]
[403633346,1769434242084,-168.0,0.00018865,2]
[403633348,1769434242093,-303.10001603,0.000189,2]
[403633349,1769434242101,-303.10001603,0.000189,2]
[403633351,1769434242110,-251.7262602,0.00018904,2]
[403633353,1769434242120,-1000.0,0.00019,2]
[403633355,1769434242129,-2603.49,0.00019,2]
[403633358,1769434242141,-24460.05308202,0.00019,2]
[403633360,1769434242150,-303.10001603,0.00019089,2]
[403633362,1769434242159,-303.10001603,0.00019089,2]
[403633364,1769434242169,-150205.85807842,0.00019101,3]
[403633366,1769434242178,-808.07,0.00019178,2]
[403633368,1769434242187,-507.96,0.00019178,2]
[403633370,1769434242197,-507.9665,0.00019178,2]
[403633372,1769434242206,-169.32,0.00019178,2]
[403633374,1769434242214,-507.9665,0.00019178,2]
[403633376,1769434242223,-507.96,0.00019178,2]
[403633378,1769434242232,-507.9665,0.00019178,2]
[403633379,1769434242241,-507.9665,0.00019178,2]
[403633381,1769434242250,-2539.8327,0.00019178,2]
[403633383,1769434242258,-507.9665,0.00019178,2]
[403633385,1769434242267,-200.0,0.00019178,2]
[403633387,1769434242277,-507.9665,0.00019178,2]
[403633389,1769434242287,-507.9665,0.00019178,2]
[403633392,1769434242304,-507.9665,0.00019178,2]
[403633395,1769434242316,-507.9665,0.00019178,2]
[403633397,1769434242325,-507.9665,0.00019178,2]
[403633399,1769434242335,-507.9665,0.00019178,2]
[403633401,1769434242344,-507.9665,0.00019178,2]
[403633403,1769434242354,-507.9665,0.00019178,2]
[403633405,1769434242366,-507.9665,0.00019178,2]
[403633407,1769434242377,-507.9665,0.00019178,2]
[403633409,1769434242386,-151.0,0.00019178,2]
[403633411,1769434242396,-157.458594,0.00019178,2]
[403633413,1769434242406,-182.048064,0.00019178,2]
[403633415,1769434242415,-182.048064,0.00019178,2]
[403633417,1769434242424,-182.048064,0.00019178,2]
[403633419,1769434242433,-182.048064,0.00019178,2]
[403633421,1769434242444,-5500.0,0.00019178,2]
[403633423,1769434242454,-3130.10846657,0.00019205,5]
[403633425,1769434242463,-303.10001603,0.00019278,2]
[403633427,1769434242472,-303.10001603,0.00019278,2]
[403633429,1769434242481,-1124.330124,0.0001944,7]
[403633431,1769434242490,-303.10001603,0.00019467,2]
[403633433,1769434242499,-303.10001603,0.00019467,2]
[403633435,1769434242508,-184.01,0.00019493,2]
[403633437,1769434242517,-1000.0,0.000195,2]
[403633439,1769434242526,-422.78149491,0.00019517,2]
[403633441,1769434242535,-23930.78163137,0.000196,3]
[403633443,1769434242544,-164.34495881,0.000196,2]
[403633445,1769434242553,-448.242188,0.00019656,7]
[403633447,1769434242562,-303.10001603,0.00019656,2]
[403633449,1769434242571,-303.10001603,0.00019656,2]
[403633451,1769434242580,-23930.78,0.000197,3]
[403633453,1769434242590,-2061.20479703,0.00019726,2]
[403633455,1769434242599,-1288.709849,0.0001976,5]
[403633457,1769434242607,-1000.0,0.0001978,5]
[403633459,1769434242617,-192.103795,0.00019781,7]
[403633461,1769434242626,-11965.39,0.000198,3]
[403633463,1769434242635,-1000.0,0.000198,5]
[403633465,1769434242644,-800.0,0.00019803,2]
[403633467,1769434242653,-1000.0,0.0001982,5]
[403633469,1769434242663,-1000.0,0.0001984,5]
[403633471,1769434242672,-454.65002405,0.00019845,4]
[403633473,1769434242681,-454.65002405,0.00019845,4]
[403633475,1769434242692,-1000.0,0.0001986,5]
[403633477,1769434242702,-1000.0,0.0001988,5]
[403633479,1769434242712,-166.66666666,0.00019899,2]
[403633481,1769434242721,-1000000.0,0.000199,2]
[403633483,1769434242731,-1000.0,0.000199,5]
[403633485,1769434242740,-151.0,0.000199,2]
[403633487,1769434242749,-182.048064,0.000199,2]
[403633489,1769434242758,-182.048064,0.000199,2]
[403633491,1769434242768,-182.048064,0.000199,2]
[403633493,1769434242778,-182.048064,0.000199,2]
[403633495,1769434242787,-1000.0,0.0001992,5]
[403633497,1769434242797,-1000.0,0.0001994,5]
[403633499,1769434242806,-1000.0,0.0001996,5]
[403633501,1769434242816,-535.014625,0.00019973,7]
[403633503,1769434242825,-1000.0,0.0001998,5]
[403633505,1769434242835,-3087.0802621,0.00019994,2]
[403633507,1769434242845,-85848.32443332,0.0002,2]
[403633656,1769434268805,500.0,0.00034768,120]
[403633657,1769434290319,258.80830782,0.00034768,120]
[403633663,1769434389497,177.32618779,0.00034768,120]
[403633664,1769434389849,177.32618779,0.00034768,120]
[403633665,1769434390220,177.32618779,0.00034768,120]
[403633666,1769434398092,201.10282818,0.00030136,120]
[403633667,1769434399737,500.0,0.00034768,120]
[403633668,1769434417692,151.0,0.00030137,120]
[403633669,1769434451776,1000.0,0.00034714,120]
[403633670,1769434473200,500.0,0.00034714,120]
[403633671,1769434505921,500.0,0.00034714,120]
[403633672,1769434524849,99970.0,0.00034714,120]
[403633673,1769434528737,500.0,0.00034714,120]
[403633674,1769434550206,4000.0,0.00034714,120]
[403633675,1769434749980,500.0,0.00027397,120]
[403633676,1769434750322,500.0,0.00030137,120]
[403633677,1769434861574,110002.3232,0.00034833,120]
[403633678,1769434890490,1120.0,0.000105,30]
[403633679,1769434890512,8880.0,0.000105,30]
[403633680,1769434974291,1000.0,0.00030136,120]
[403633681,1769435063470,500.0,0.00027397,120]
[403633682,1769435063844,500.0,0.00030137,120]
[403633683,1769435076024,500.0,0.00034864,120]
[403633684,1769435076255,500.0,0.00034864,120]
[403633685,1769435076496,500.0,0.00034864,120]
[403633686,1769435076752,649.459236,0.00034864,120]
[403633687,1769435372145,-150.96974959,9.5e-05,2]